Cogmind - Beta 16 @@@ ROGUE MODE // 2025.11.09 @ 15:00:42 Player: Lazz Result: Destroyed by RL-PX2(R) with Subdweller Machine Gun Performance ------------- Evolutions (0) 0 Regions Visited (2) 400 Robots Destroyed (19) 95 Value Destroyed (346) 346 Prototype IDs (12) 240 Alien Tech Used (0) 0 Bonus (-90) -90 TOTAL SCORE: 991 Bonus ------- Friendly Fire -90 Cogmind --------- Core Integrity 0/250 Matter 300/300 Energy 180/180 System Corruption 0% Temperature Cool (0) Movement Treading (160) Location -10/Subcaves Parts ------- > --- POWER (1) -------- Meta Core > --- PROPULSION (2+1) - Light Treads (+) Light Treads Spiked Treads > --- UTILITY (2+1) ---- Large Storage Unit Light Armor Plating Makeshift Light Armor Plating (+) > --- WEAPON (2+1) ----- Heavy Riot Gun Medium Laser (+) Subdweller Beam Cannon > --- INVENTORY (15) --- Ion Engine Subdweller Power Source Subdweller Power Source Light Treads Aluminum Leg Aluminum Leg Makeshift Leg Subdweller Monowheel Medium Storage Unit EM Pulse Gun Subdweller Beam Cannon Subdweller Machine Gun Flamer Scrap Shield Fragment (49) Peak State ------------ > --- POWER ------------ Meta Core > --- PROPULSION ------- Light Treads Light Treads Spiked Treads > --- UTILITY ---------- Large Storage Unit Improved Terrain Scanner Makeshift Light Armor Plating > --- WEAPON ----------- Heavy Riot Gun Medium Laser Subdweller Beam Cannon > --- INVENTORY -------- Ion Engine Subdweller Power Source Subdweller Power Source Light Treads Aluminum Leg Aluminum Leg Makeshift Leg Subdweller Monowheel Medium Storage Unit EM Pulse Gun Subdweller Machine Gun Scrap Shield Fragment [Rating: 34] Favorites ----------- Power Ion Engine Engine Ion Engine Power Core Meta Core Propulsion Light Treads Treads Light Treads Leg Aluminum Leg Utility Improved Terrain Scanner Device Improved Terrain Scanner Storage Large Storage Unit Protection Makeshift Light Armor Plating Weapon Medium Laser Energy Gun Medium Laser Energy Cannon Subdweller Beam Cannon Ballistic Gun Subdweller Machine Gun Special Weapon Flamer Build | -11 -10 -10 ------- Run | Yrd Mat Sub Slots Evolved . | . . . Power . | . . . Propulsion . | . . . Utility . | . . . Weapon . | . . . Parts Attached 21 | 8 1 12 Power 2 | 1 . 1 Engine 1 | 1 . . Core 1 | . . 1 Reactor . | . . . Propulsion 5 | 2 . 3 Treads 3 | . . 3 Leg 2 | 2 . . Wheel . | . . . Hover . | . . . Flight . | . . . Utility 7 | 3 1 3 Device 2 | 2 . . Storage 3 | 1 1 1 Processor . | . . . Hackware . | . . . Protection 2 | . . 2 Artifact . | . . . Weapon 7 | 2 . 5 Energy Gun 4 | 2 . 2 Energy Cannon 1 | . . 1 Ballistic Gun 1 | . . 1 Ballistic Cannon . | . . . Launcher . | . . . Special Weapon 1 | . . 1 Impact Weapon . | . . . Slashing Weapon . | . . . Piercing Weapon . | . . . Special Melee Weapon . | . . . Unidentified Prototypes . | . . . Parts Lost 1 | . . 1 Power . | . . . Propulsion . | . . . Utility 1 | . . 1 Weapon . | . . . Highest Loss Streak 1 | . . 1 To Critical Strikes . | . . . Average Backups 9 | 3 6 12 Power 2 | . 1 2 Propulsion 4 | 1 3 5 Utility 1 | . . 1 Weapon 2 | . 1 2 Tool/Special . | . . . Unused Backups 9 | . 1 8 Power 4 | . 1 3 Propulsion 4 | . . 4 Utility . | . . . Weapon 1 | . . 1 Tool/Special . | . . . Average Slot Usage (%) 99 | . 100 99 Engine 9 | . 14 8 Core 3 | . . 3 Treads 23 | . . 26 Leg 5 | . 28 1 Device 10 | . 14 10 Storage 12 | . 14 12 Protection 4 | . . 5 Energy Gun 20 | . 28 19 Energy Cannon 3 | . . 4 Ballistic Gun 3 | . . 4 Peak Build Rating 34 | 9 9 34 Average Rating 16 | 8 9 19 On Entrance 6 | . 9 9 Avg Prop Armor Cover (%) . | . . . Naked Turns . | . . . Heaviest Build 47 | 15 20 47 Greatest Support 60 | 20 20 60 Greatest Overweight (x) 1 | 1 . . Average Overweight (x) . | . . . Largest Inventory Capacity 15 | 8 10 15 Average Capacity 12 | 7 8 14 Most Carried 15 | 4 8 15 Average Carried 10 | 3 6 13 Final Capacity 15 | 8 10 15 Final Carried 14 | 4 8 14 Class Distribution -------------------- 74% | Mutant 25% | Derelict-Tank Dominant Class ---------------- Mutant | -10/Materials Mutant | -10/Subcaves Resources | -11 -10 -10 ----------- Run | Yrd Mat Sub Matter Collected 468 | 280 . 188 Remotely 132 | 132 . . Salvage Created 668 | 257 57 354 Parts 41 | 19 3 19 Haulers Intercepted 1 | . 1 . Recyclers Shooed . | . . . Parts Field Recycled . | . . . Retrieved Matter . | . . . Parts Self-Destructed 8 | . . 8 Prevented . | . . . Parts Restored . | . . . Kills | -11 -10 -10 ------- Run | Yrd Mat Sub Combat Hostiles Destroyed 7 | . . 7 Guns 6 | . . 6 Classes Destroyed 6 | 3 1 2 Worker 2 | 2 . . Tunneler 8 | 8 . . Hauler 1 | . 1 . Recycler 1 | 1 . . Artisan 1 | . . 1 Subdweller 7 | . . 7 Best Kill Streak 3 | 3 1 2 Combat Bots Only 2 | . . 2 Max Kills in Single Turn 1 | 1 1 1 Gunslinging . | . . . Exploded . | . . . Melee . | . . . Uniques/NPCs Destroyed . | . . . Combat | -11 -10 -10 -------- Run | Yrd Mat Sub Hostile Shots Fired 38 | . . 38 Missed 10 | . . 10 Hits 28 | . . 28 Projectile 28 | . . 28 Critical Strikes 1 | . . 1 Damage Taken 641 | . . 641 Core 251 | . . 251 Absorbed by Shields . | . . . Core Remaining (%) 100 | 100 . . Volleys Fired 79 | 29 1 49 Largest 3 | 2 2 3 Hottest 190 | 100 100 190 Shots Fired 157 | 58 2 97 Gun 150 | 58 2 90 Cannon 5 | . . 5 Launcher . | . . . Special 2 | . . 2 Kinetic 14 | . . 14 Thermal 128 | 58 2 68 Explosive . | . . . Electromagnetic 15 | . . 15 Robot Hit Streak 13 | 8 4 13 Robot Miss Streak 5 | 5 . 3 Penetration Max . | . . . Secondary Targets 1 | . . 1 Max Gunslinging Chain 1 | . . 1 Shots Hit Robots 82 | 26 2 54 Core Hits 29 | 12 2 15 Critical Kills . | . . . Critical Parts Destroyed . | . . . Critical Strikes 6 | 1 . 5 Burn 6 | 1 . 5 Melee Attacks . | . . . Impact . | . . . Slashing . | . . . Piercing . | . . . Sneak Attacks . | . . . Combat Hostiles . | . . . Follow-up Attacks . | . . . Damage Inflicted 1113 | 340 24 749 Guns 1088 | 340 24 724 Cannons 25 | . . 25 Explosions . | . . . Melee . | . . . Ramming . | . . . Kinetic 80 | . . 80 Thermal 913 | 340 24 549 Explosive . | . . . Electromagnetic 120 | . . 120 Impact . | . . . Slashing . | . . . Piercing . | . . . Highest Corruption . | . . . Average Corruption . | . . . Corruption Purged . | . . . Corruption Blocked . | . . . Overload Shots . | . . . Overflow Damage . | . . . Projectiles . | . . . Explosions . | . . . Melee . | . . . Knockbacks . | . . . Impact . | . . . Kinetic . | . . . Secondary . | . . . Self-Inflicted Damage . | . . . Shots . | . . . Rammed . | . . . Targets Rammed . | . . . Kicked . | . . . Crushed . | . . . Highest Temperature 238 | 238 39 172 Average Temperature 72 | 73 20 73 Received Heat Transfer 138 | . . 138 Siege Activations . | . . . Martial Activations . | . . . Shielding Activations . | . . . Robots Disrupted . | . . . Combat Hostiles . | . . . Robots Corrupted . | . . . Combat Hostiles . | . . . Parts Fried . | . . . Impact Corruptions . | . . . Robots Melted 1 | . . 1 Combat Hostiles 1 | . . 1 Parts Melted 10 | 4 1 5 Heat Transferred 3108 | 1073 74 1961 Parts Sabotaged . | . . . Parts Stolen . | . . . Parts Stripped . | . . . Power Chain Reactions . | . . . Alert | -11 -10 -10 ------- Run | Yrd Mat Sub Maximum Alert Level . | . . . Low Security (%) 100 | 100 100 . Level 1 . | . . . Level 2 . | . . . Level 3 . | . . . Level 4 . | . . . Level 5 . | . . . High Security . | . . . Max Security . | . . . Peak Influence 15 | 15 7 . Initial . | . . . Average 1 | 2 . . Influence Increases 62 | 55 7 . Destroy 0b10 Robot/NC 60 | 55 5 . Destroy Leader 2 | . 2 . Influence Decreases 62 | 55 7 . Time Decay 62 | 55 7 . Squads Dispatched . | . . . Investigation . | . . . Extermination . | . . . Reinforcement . | . . . Assault . | . . . Garrison . | . . . Intercept . | . . . Searches Triggered . | . . . Construction Impeded . | . . . Haulers Reinforced . | . . . Active Scanning Responses . | . . . Cargo Convoy Interrupts . | . . . Stealth | -11 -10 -10 --------- Run | Yrd Mat Sub Distress Signals . | . . . Communications Jammed . | . . . Distress Signals . | . . . Times Spotted 8 | . . 8 Peak Tracking Total 2 | . . 2 Tactical Retreats . | . . . Traps | -11 -10 -10 ------- Run | Yrd Mat Sub Traps Triggered 1 | . . 1 Indirectly . | . . . Trap Hack Attempts . | . . . Triggered . | . . . Disarmed . | . . . Reprogrammed . | . . . Reused . | . . . Traps Extracted . | . . . Installed . | . . . Triggered . | . . . Machines | -11 -10 -10 ---------- Run | Yrd Mat Sub Machines Disabled 2 | . . 2 Max in Single Turn 1 | . . 1 Machines Repaired . | . . . Machines Dismantled . | . . . Machines Sabotaged . | . . . Overloaded Fab Kills . | . . . Hacking | -11 -10 -10 --------- Run | Yrd Mat Sub Machines Accessed 1 | . . 1 Terminals . | . . . Fabricators . | . . . Repair Stations . | . . . Recycling Units . | . . . Scanalyzers . | . . . Garrison Access . | . . . Total Hacks 9 | . . 9 Successful 9 | . . 9 Failed . | . . . Catastrophic . | . . . Database Lockouts . | . . . Manual 4 | . 3 1 Terminals . | . . . Fabricators . | . . . Repair Stations . | . . . Recycling Units . | . . . Scanalyzers . | . . . Garrison Access . | . . . Terminal Hacks 9 | . . 9 Record 8 | . . 8 Proto ID Catalog 1 | . . 1 Fabricator Hacks . | . . . Repair Station Hacks . | . . . Recycling Unit Hacks . | . . . Scanalyzer . | . . . Garrison Access Hacks . | . . . Unauthorized Hacks . | . . . Terminals . | . . . Fabricators . | . . . Repair Stations . | . . . Recycling Units . | . . . Scanalyzers . | . . . Garrison Access . | . . . Data Cores Recovered . | . . . Used . | . . . Hacking Detections 1 | . 1 . Full Trace Events 1 | . 1 . Feedback Events . | . . . Feedback Blocked . | . . . Robot Schematics Acquired . | . . . Robots Built . | . . . Authchips . | . . . Time . | . . . Total Robot Build Rating . | . . . Part Schematics Acquired . | . . . Parts Built . | . . . Authchips . | . . . Time . | . . . Total Part Build Rating . | . . . Part Studies Acquired . | . . . Parts Repaired . | . . . Time . | . . . Parts Recycled . | . . . Recycled Matter . | . . . Retrieved Matter . | . . . Retrieved Components . | . . . Parts Scanalyzed . | . . . Part Schematics Acquired . | . . . Parts Damaged . | . . . Bothacking | -11 -10 -10 ------------ Run | Yrd Mat Sub Used RIF Installer . | . . . Robots Hacked . | . . . Non-combat . | . . . Combat . | . . . Robot Hacks Applied . | . . . Relay Couplers Released . | . . . Fabnet Peak Effective % . | . . . Robots Rewired . | . . . Allies Hacked . | . . . Hacks Repelled . | . . . Allies | -11 -10 -10 -------- Run | Yrd Mat Sub Total Allies . | . . . Largest Group . | . . . Highest-Rated Group . | . . . Highest-Rated Ally . | . . . Total Orders . | . . . Ally Attacks . | . . . Total Damage . | . . . Kills . | . . . Allies Corrupted . | . . . Allies Melted . | . . . Intel | -11 -10 -10 ------- Run | Yrd Mat Sub Active Infowar (turns) 1343 | 228 188 927 Terrain 1343 | 228 188 927 Robot Analysis Total . | . . . Derelict Logs Recovered . | . . . Drone Launches . | . . . Drone Recoveries . | . . . Exploration | -11 -10 -10 ------------- Run | Yrd Mat Sub Turns Passed 1678 | 318 188 1172 Spaces Moved 916 | 184 110 622 Core 11 | 11 . . Treads 599 | . . 599 Legs 306 | 173 110 23 Wheels . | . . . Hover . | . . . Flight . | . . . Fastest Speed 50 | 50 120 120 Average Speed 145 | 116 120 158 Slowest Speed 160 | 120 120 160 Overloaded Moves . | . . . Propulsion Burnouts . | . . . Robots Hopped . | . . . Potential Cave-ins . | . . . Cave-ins Triggered . | . . . Exploration Rate (%) 17 | 7 20 24 Regions Visited 2 Branch Regions 1 Pre-discovered Areas 1 | . . 1 Known Exits Taken . | . . . Unknown Exits Taken 2 | 1 1 . Scrap Searched 5 | . . 5 Spaces Dug . | . . . Terrain Destroyed 2 | . . 2 Melee . | . . . Projectile 2 | . . 2 AOE . | . . . Terrain Rammed . | . . . Walls Destroyed . | . . . Machines Disabled . | . . . Actions | -11 -10 -10 --------- Run | Yrd Mat Sub Total 1102 | 225 166 711 Wait 50 | . 48 2 Move 914 | 183 109 622 Hop . | . . . Pick Up 23 | 4 5 14 Fast Attach 11 | 8 . 3 Attach 6 | . . 6 Detach 1 | . . 1 Swap 7 | . 1 6 Drop 11 | 1 2 8 Fire 79 | 29 1 49 Melee . | . . . Ram . | . . . Kick . | . . . Crush . | . . . Escape Stasis . | . . . Rewire . | . . . Trap . | . . . Miscellaneous . | . . . Route ------- -11/Scrapyard -10/Materials -10/Subcaves History --------- Turn | Location | Event 12 | -11/Scrapyard | Discovered new exit (range 15) 319 | -11/Scrapyard | Entered Materials 320 | -10/Materials | Build established: Mutant 494 | -10/Materials | Discovered new exit (range 8) 507 | -10/Materials | Entered Subcaves 508 | -10/Subcaves | Approached by a straggling Scientist 640 | -10/Subcaves | Learned location of Zion (-6) 640 | -10/Subcaves | Met a Zionite searching for "candidates" 687 | -10/Subcaves | Core integrity fell below 50% 897 | -10/Subcaves | Shifting Twisted Machinery released Hvy. Riot Gun 1065 | -10/Subcaves | Visited 4L-MR0's lab 1176 | -10/Subcaves | Core integrity fell below 20% 1247 | -10/Subcaves | Found Meta Core 1249 | -10/Subcaves | Attached Meta Core, gained temporary slots: Propulsion, Utility, Weapon 1535 | -10/Subcaves | Build established: Derelict-Tank 1679 | -10/Subcaves | Destroyed by RL-PX2(R) with Subdweller Machine Gun Last Messages --------------- slot. 01249_ Core temporarily expanded with Utility slot. 01249_ Core temporarily expanded with Weapon slot. 01272_ Acquired 31 matter. 01276_ Acquired Lgt. Armor Plating. 01278_ Acquired Flamer. 01284_ Acquired 9 matter. 01432_ WP-RL0(R): "SUB#$%&!" 01434_ Imp. Terrain Scanner destroyed. 01447_ WP-RL0(R) destroyed. 01450_ Acquired 10 matter. 01453_ Acquired Sub. Beam Cannon. 01457_ Searching scrap... 01457_ Found Sub. Monowheel. 01457_ Found 63 Matter. 01459_ Searching scrap... 01459_ Found Sub. Machine Gun. 01459_ Found 48 Matter. Map ----- +----------------------------------------------------+ | ??#??# "#### "## ## ###????? | | ?###?#* #### ["### #????? | | ?#???#####"% #### # #???? | | #??????#?###### ###?????? | | #????#?#??????# ## ##?????? ? | | ##???###??##??# ### ##????????? | | ??????##????#?## #?###?????????? | | ?#????????#????# "#" #????????????? | | #??#?????##???### "## #????????????? | | ??????#?????#### "### #???????????? | | ?###?????#??#?## #### ## ##???????????? | | ????#??????????# #?## #?###????????????? | | ??????#?#??????# #### #? ???????????? | | ?????#??##?????# "" ???????#????? | | ???????????????# # ""#####?????????????? | | ???????????????# ####?????????????????? | | ??????##???????# " #????????????????????? | | ??????????????##"" ##????????????????????? | | ???#???????????##" #????????????? ???????? | | ????????????????#" #?????????????????????? | | ?????????????#?##" ##????????????????????? | | ???????????????# ##??????????????#????? | | ???????????????# #####???????????????? | | ???????????????## #???????????????? | | ??????????????### ###??????????????? | | ??????????????# @ ##???????????????? | | ??????????????## #### ######??????????? | | ???????????????#< #### #?????#????? | | ?????????#??# ##??????????? | | ???????????" ##< ### #??????????? | | ????????????#?# #### ##??????????? | | ?????????#????# ####?# #?????????#? | | ??????????????#### #?????## ##??????????? | | ????????????#???## ##?##?# #???????????? | | ???????????#????# # ## ##??????????? | | ???????????????## R #####????#?# | | ???????????????# #??????? | | ??????????????# # # ##??#???? | | ??????????????????#### """"" #???????# | | ?????????????????????#"##"" #??#????? | | ????????????????????""" """ " #?????#?? | | ????????????????????"" " "" " #???????? | | ?????????????????????"" # "" " #???#???? | | ?????????????????????#"" # """ ##??##### | | ??????????????????????" "" ##?## # | | ??????????????????????"" ##" ### # | | ?????????????????????# " "##" ##" ### | | ???????????????#????#??"" """ " " ##?? | | ????????????????????????" """""" " #??? | | ?????????????????##????? """""""" #??? | +----------------------------------------------------+ Best States ------------- Heat Dissipation 25 Energy Generation 17 Energy Capacity 250 Matter Stores 300 Matter Capacity 300 Sight Range 16 Terrain Scan Range 16 Terrain Scan Density 10 Armor Coverage 250 Evasion (%) 55 Recoil Reduction 3 Item Schematics ----------------- None Robot Schematics ------------------ None Fabricated ------------ Nothing Repaired ---------- Nothing Studied --------- None Alien Tech Used ----------------- None Achievements -------------- Art Critic Challenges ------------ None Game ------ Seed PlatingGuidedTearclaws Manual? 0 Play Time 00:14:47 Cumulative 56.6 hours Start 2025.11.08 @ 22:41:58 End 2025.11.09 @ 15:00:42 Sessions 2 Manual Loads 0 Difficulty Rogue Special Mode None Game No. 74 Rogue 74 Adventurer 0 Explorer 0 Win Type - Total 1 Types 1/0/0/0/0/0/0/0/0/0 Lore% 33 Gallery% 41 Achievement% 30 Wizard Run 0 Options --------- Layout 2 ASCII 0 Keyboard 0 Movement Mouse Keybinds 0 Fullscreen 1 Font 24/Smallcaps Map View 50x44 Zoom Use 0% Tactical HUD 1 Map Filters NONE Filters NONE Steam 1 RUN: 546efb64-66b5-4f04-b21c-9f5192e0244c